lending/lending_fUSD_20260306
["ID","MTS","AMOUNT","RATE_DAILY","PERIOD"]
[407801084,1772808670485,-500.0,0.000417,120]
[407801085,1772808670501,-500.0,0.000417,120]
[407801086,1772808670516,-500.0,0.000417,120]
[407801087,1772808670526,-500.0,0.000417,120]
[407801088,1772808670536,-500.0,0.000417,120]
[407801089,1772808670548,-500.0,0.000417,120]
[407801090,1772808670558,-500.0,0.000417,120]
[407801091,1772808670567,-500.0,0.000417,120]
[407801092,1772808670577,-500.0,0.000417,120]
[407801093,1772808670587,-500.0,0.000417,120]
[407801094,1772808670596,-500.0,0.000417,120]
[407801095,1772808670606,-500.0,0.000417,120]
[407801096,1772808670625,-500.0,0.000417,120]
[407801097,1772808670637,-500.0,0.000417,120]
[407801098,1772808670648,-500.0,0.000417,120]
[407801099,1772808670657,-500.0,0.000417,120]
[407801100,1772808670667,-500.0,0.000417,120]
[407801101,1772808670677,-151.0,0.000417,120]
[407801102,1772808670686,-151.0,0.000417,60]
[407801103,1772808670696,-151.0,0.000417,30]
[407801104,1772808670706,-151.0,0.000417,120]
[407801105,1772808670719,-151.0,0.000417,120]
[407801106,1772808670730,-151.0,0.000417,120]
[407801107,1772808670740,-151.0,0.000417,120]
[407801108,1772808670751,-286.149024,0.000417,120]
[407801109,1772808670760,-352.551056,0.000417,120]
[407801110,1772808670769,-2162.095754,0.000417,14]
[407801111,1772808670782,-352.551056,0.000417,120]
[407801112,1772808670792,-2162.095754,0.000417,14]
[407801113,1772808670804,-248.206969,0.000417,120]
[407801114,1772808670814,-151.0,0.000417,120]
[407801115,1772808670823,-352.551056,0.000417,120]
[407801116,1772808670833,-2162.095754,0.000417,14]
[407801117,1772808670842,-248.206969,0.000417,120]
[407801118,1772808670852,-151.0,0.000417,120]
[407801119,1772808670862,-352.551056,0.000417,120]
[407801120,1772808670871,-2162.095754,0.000417,14]
[407801121,1772808670881,-248.206969,0.000417,120]
[407801122,1772808670891,-151.0,0.000417,120]
[407801123,1772808670904,-248.206969,0.000417,120]
[407801124,1772808670916,-174.50106,0.000417,120]
[407801125,1772808670927,-174.50106,0.000417,120]
[407801126,1772808670937,-151.0,0.000417,120]
[407801127,1772808670950,-174.50106,0.000417,120]
[407801128,1772808670959,-151.0,0.000417,120]
[407801129,1772808670968,-174.50106,0.000417,120]
[407801130,1772808670979,-189.490231,0.000417,120]
[407801131,1772808670989,-340.992679,0.000417,120]
[407801132,1772808671000,-340.992679,0.000417,120]
[407801133,1772808671010,-340.992679,0.000417,120]
[407801134,1772808671019,-340.992679,0.000417,120]
[407801135,1772808671030,-151.0,0.000417,120]
[407801136,1772808671039,-151.0,0.000417,120]
[407801137,1772808671055,-765.469895,0.000417,7]
[407801138,1772808671064,-765.469895,0.000417,7]
[407801139,1772808671074,-765.469895,0.000417,7]
[407801140,1772808671084,-1000.0,0.0004176,30]
[407801141,1772808671093,-151.5,0.00041764,60]
[407801142,1772808671103,-31833.9151,0.00041781,120]
[407801143,1772808671113,-31833.9151,0.00041781,120]
[407801144,1772808671122,-31833.9151,0.00041781,120]
[407801145,1772808671132,-31833.9151,0.00041781,120]
[407801146,1772808671142,-31833.9151,0.00041781,120]
[407801147,1772808671151,-31833.9151,0.00041781,120]
[407801148,1772808671161,-31833.9151,0.00041781,120]
[407801149,1772808671171,-31833.9151,0.00041781,120]
[407801150,1772808671181,-31833.9151,0.00041781,120]
[407801151,1772808671191,-31833.9151,0.00041781,120]
[407801152,1772808671202,-31833.9151,0.00041781,120]
[407801153,1772808671213,-31833.9151,0.00041781,120]
[407801154,1772808671224,-151.0,0.00041781,120]
[407801155,1772808671236,-436.687881,0.00041781,120]
[407801156,1772808671246,-436.687881,0.00041781,120]
[407801157,1772808671256,-436.687881,0.00041781,120]
[407801158,1772808671265,-436.687881,0.00041781,120]
[407801159,1772808671275,-151.0,0.00041781,120]
[407801160,1772808671284,-151.0,0.00041781,120]
[407801161,1772808671297,-151.0,0.00041781,30]
[407801162,1772808671311,-151.0,0.00041781,120]
[407801163,1772808671326,-524.175388,0.00041781,120]
[407801164,1772808671336,-524.175388,0.00041781,120]
[407801165,1772808671346,-524.175388,0.00041781,120]
[407801166,1772808671355,-524.175388,0.00041781,120]
[407801167,1772808671365,-151.0,0.00041781,120]
[407801168,1772808671375,-151.0,0.00041781,120]
[407801169,1772808671385,-151.0,0.00041781,120]
[407801170,1772808671396,-175.090713,0.00041781,120]
[407801171,1772808671406,-173.916247,0.00041781,120]
[407801172,1772808671415,-151.0,0.00041781,120]
[407801173,1772808671425,-151.0,0.00041781,120]
[407801174,1772808671435,-151.0,0.00041781,120]
[407801175,1772808671445,-378.094373,0.00041781,2]
[407801176,1772808671455,-378.094373,0.00041781,2]
[407801177,1772808671466,-151.0,0.00041781,120]
[407801178,1772808671476,-378.094373,0.00041781,2]
[407801179,1772808671486,-151.0,0.00041781,120]
[407801180,1772808671495,-378.094373,0.00041781,2]
[407801181,1772808671505,-151.0,0.00041781,120]
[407801182,1772808671515,-151.0,0.00041781,120]
[407801183,1772808671524,-151.0,0.00041781,120]
[407801184,1772808671534,-151.0,0.00041781,120]
[407801185,1772808671544,-151.0,0.00041781,120]
[407801186,1772808671555,-161.676846,0.00041781,120]
[407801187,1772808671565,-151.0,0.00041781,120]
[407801188,1772808671575,-152.377949,0.00041781,120]
[407801189,1772808671585,-152.377949,0.00041781,120]
[407801190,1772808671595,-293.573573,0.00041781,120]
[407801191,1772808671605,-152.377949,0.00041781,120]
[407801192,1772808671615,-293.573573,0.00041781,120]
[407801193,1772808671624,-152.377949,0.00041781,120]
[407801194,1772808671634,-293.573573,0.00041781,120]
[407801195,1772808671644,-293.573573,0.00041781,120]
[407801196,1772808671653,-151.0,0.00041781,120]
[407801197,1772808671663,-151.0,0.00041781,120]
[407801198,1772808671674,-151.0,0.00041781,120]
[407801199,1772808671683,-1001.307878,0.00041781,120]
[407801200,1772808671693,-1001.307878,0.00041781,120]
[407801201,1772808671702,-1001.307878,0.00041781,120]
[407801202,1772808671712,-705.462888,0.00041781,120]
[407801203,1772808671722,-705.462888,0.00041781,120]
[407801204,1772808671731,-705.462888,0.00041781,120]
[407801205,1772808671741,-1001.307878,0.00041781,120]
[407801206,1772808671750,-705.462888,0.00041781,120]
[407801207,1772808671760,-1740.386261,0.00041781,120]
[407801208,1772808671770,-1740.386261,0.00041781,120]
[407801209,1772808671780,-200.805006,0.00041781,120]
[407801210,1772808671789,-1740.386261,0.00041781,120]
[407801211,1772808671801,-1740.386261,0.00041781,120]
[407801212,1772808671811,-372.07016667,0.00041785,2]
[407801213,1772808671821,-1077.46982182,0.000418,120]
[407801214,1772808671831,-153.0,0.000418,120]
[407801215,1772808671841,-151.0,0.000418,120]
[407801216,1772808671851,-724.53543,0.00041888,30]
[407801217,1772808671864,-4697.38459542,0.00041891,94]
[407801218,1772808671874,-218.69328187,0.000419,120]
[407801219,1772808671884,-746.0,0.00041918,120]
[407801220,1772808671895,-746.0,0.00041918,120]
[407801221,1772808671907,-600.0,0.00041918,10]
[407801222,1772808671917,-1000.0,0.00041918,10]
[407801223,1772808671927,-181.64795406,0.00042,120]
[407801224,1772808671938,-1084.06908218,0.00042,120]
[407801225,1772808671948,-473.0580088,0.00042,2]
[407801226,1772808671958,-438.79035625,0.00042,120]
[407801227,1772808671968,-500.0,0.00042,2]
[407801228,1772808671979,-255.92761794,0.00042,30]
[407801229,1772808671990,-850.8235192,0.00042,120]
[407801230,1772808671999,-255.05379879,0.00042,120]
[407801231,1772808672009,-372.74275315,0.00042,60]
[407801232,1772808672019,-208.00866859,0.00042,14]
[407801233,1772808672028,-1296.0,0.00042,120]
[407801234,1772808672038,-294.0,0.00042,120]
[407801235,1772808672050,-294.0,0.00042,120]
[407801236,1772808672060,-294.0,0.00042,120]
[407801237,1772808672069,-294.0,0.00042,120]
[407801238,1772808672079,-294.0,0.00042,120]
[407801239,1772808672088,-294.0,0.00042,120]
[407801240,1772808672098,-294.0,0.00042,120]
[407801241,1772808672108,-294.0,0.00042,120]
[407801242,1772808672118,-294.0,0.00042,120]
[407801243,1772808672127,-294.0,0.00042,120]
[407801244,1772808672137,-294.0,0.00042,120]
[407801245,1772808672148,-294.0,0.00042,120]
[407801246,1772808672158,-294.0,0.00042,120]
[407801247,1772808672167,-293.0,0.00042,120]
[407801248,1772808672177,-293.0,0.00042,120]
[407801249,1772808672187,-293.0,0.00042,120]
[407801250,1772808672197,-293.0,0.00042,120]
[407801251,1772808672209,-293.0,0.00042,120]
[407801252,1772808672220,-643.63391175,0.00042,30]
[407801253,1772808672231,-977.6950903,0.00042,120]
[407801254,1772808672242,-617.0,0.00042,10]
[407801255,1772808672252,-1372.20514883,0.0004201,2]
[407801256,1772808672265,-1000.0,0.00042034,30]
[407801257,1772808672277,-151.5,0.00042038,60]
[407801258,1772808672287,-151.5,0.00042039,60]
[407801259,1772808672301,-151.5,0.00042073,60]
[407801260,1772808672311,-445.77608828,0.00042087,5]
[407801261,1772808672320,-582.0,0.000421,3]
[407801262,1772808672331,-1000.0,0.000421,120]
[407801263,1772808672341,-1065.32,0.0004212,120]
[407801264,1772808672351,-1000.0,0.0004213,120]
[407801265,1772808672361,-151.5,0.00042154,60]
[407801266,1772808672371,-151.5,0.0004217,60]
[407801267,1772808672383,-193.90639644,0.00042191,120]
[407801268,1772808672392,-746.0,0.00042192,120]
[407801269,1772808672402,-746.0,0.00042192,120]
[407801270,1772808672414,-1500.0,0.00042192,10]
[407801271,1772808672424,-350.0,0.00042192,10]
[407801272,1772808672434,-350.0,0.00042192,10]
[407801273,1772808672444,-342.19469794,0.00042192,10]
[407801274,1772808672454,-5665.70093458,0.000422,2]
[407801275,1772808672463,-1000.0,0.000422,120]
[407801276,1772808672473,-175640.6586,0.0004222,7]
[407801277,1772808672483,-151.5,0.00042221,60]
[407801278,1772808672493,-1042.7,0.00042228,30]
[407801279,1772808672502,-825.0,0.00042289,90]
[407801280,1772808672513,-305.059999,0.000423,18]
[407801281,1772808672523,-210189.0,0.000423,60]
[407801282,1772808672532,-1000.0,0.00042308,30]
[407801283,1772808672542,-151.5,0.0004237,60]
[407801284,1772808672555,-1000.0,0.000424,120]
[407801285,1772808672566,-360.0,0.00042408,90]
[407801286,1772808672576,-150.0,0.00042417,30]
[407801287,1772808672585,-237.39121081,0.00042417,30]
[407801288,1772808672595,-159.49661076,0.00042417,30]
[407801289,1772808672605,-178.56416906,0.00042417,30]
[407801290,1772808672616,-150.0,0.00042417,30]
[407801291,1772808672626,-150.0,0.00042417,30]
[407801292,1772808672635,-150.0,0.00042417,30]
[407801293,1772808672644,-150.0,0.00042417,30]
[407801294,1772808672654,-196.401106,0.00042417,30]
[407801295,1772808672667,-259.39398879,0.00042417,30]
[407801296,1772808672678,-150.0,0.00042417,30]
[407801297,1772808672688,-150.0,0.00042417,30]
[407801298,1772808672698,-150.0,0.00042417,30]
[407801299,1772808672709,-150.0,0.00042417,30]
[407801300,1772808672719,-150.0,0.00042417,30]
[407801301,1772808672730,-150.0,0.00042417,30]
[407801302,1772808672743,-198.36675964,0.00042417,30]
[407801303,1772808672754,-496.10721813,0.00042417,30]
[407801304,1772808672763,-500.0,0.00042438,120]
[407801305,1772808672775,-500.0,0.00042438,120]
[407801306,1772808672785,-237.39121081,0.00042465,30]
[407801307,1772808672798,-159.49661076,0.00042465,30]
[407801308,1772808672810,-178.56416906,0.00042465,30]
[407801309,1772808672820,-196.401106,0.00042465,30]
[407801310,1772808672830,-259.39398879,0.00042465,30]
[407801311,1772808672840,-496.10721813,0.00042465,30]
[407801312,1772808672851,-746.0,0.00042466,120]
[407801313,1772808672861,-500.0,0.00042466,60]
[407801314,1772808672874,-500.0,0.00042466,60]
[407801315,1772808672883,-500.0,0.00042466,60]
[407801316,1772808672898,-500.0,0.00042466,60]
[407801317,1772808672909,-500.0,0.00042466,60]
[407801318,1772808672921,-500.0,0.00042466,60]
[407801319,1772808672931,-500.0,0.00042466,60]
[407801320,1772808672941,-500.0,0.00042466,60]
[407801321,1772808672951,-500.0,0.00042466,60]
[407801322,1772808672963,-500.0,0.00042466,60]
[407801323,1772808672973,-500.0,0.00042466,60]
[407801324,1772808672984,-500.0,0.00042466,60]
[407801325,1772808672995,-500.0,0.00042466,60]
[407801326,1772808673005,-500.0,0.00042466,60]
[407801327,1772808673015,-500.0,0.00042466,60]
[407801328,1772808673027,-500.0,0.00042466,60]
[407801329,1772808673038,-500.0,0.00042466,60]
[407801330,1772808673056,-500.0,0.00042466,60]
[407801331,1772808673066,-500.0,0.00042466,60]
[407801332,1772808673075,-500.0,0.00042466,60]
[407801333,1772808673086,-500.0,0.00042466,60]
[407801334,1772808673096,-500.0,0.00042466,60]
[407801335,1772808673105,-500.0,0.00042466,60]
[407801336,1772808673115,-500.0,0.00042466,60]
[407801337,1772808673125,-500.0,0.00042466,60]
[407801338,1772808673136,-500.0,0.00042466,60]
[407801339,1772808673146,-500.0,0.00042466,60]
[407801340,1772808673156,-500.0,0.00042466,60]
[407801341,1772808673167,-500.0,0.00042466,60]
[407801342,1772808673177,-500.0,0.00042466,60]
[407801343,1772808673187,-500.0,0.00042466,60]
[407801344,1772808673197,-500.0,0.00042466,60]
[407801345,1772808673207,-500.0,0.00042466,60]
[407801346,1772808673217,-500.0,0.00042466,60]
[407801347,1772808673227,-500.0,0.00042466,60]
[407801348,1772808673238,-500.0,0.00042466,60]
[407801349,1772808673248,-500.0,0.00042466,60]
[407801350,1772808673258,-500.0,0.00042466,60]
[407801351,1772808673268,-500.0,0.00042466,60]
[407801352,1772808673278,-500.0,0.00042466,60]
[407801353,1772808673289,-500.0,0.00042466,60]
[407801354,1772808673304,-500.0,0.00042466,60]
[407801355,1772808673313,-500.0,0.00042466,60]
[407801356,1772808673323,-500.0,0.00042466,60]
[407801357,1772808673333,-500.0,0.00042466,60]
[407801358,1772808673343,-500.0,0.00042466,60]
[407801359,1772808673353,-500.0,0.00042466,60]
[407801360,1772808673362,-500.0,0.00042466,60]
[407801361,1772808673372,-500.0,0.00042466,60]
[407801362,1772808673387,-500.0,0.00042466,60]
[407801363,1772808673396,-500.0,0.00042466,60]
[407801364,1772808673406,-500.0,0.00042466,60]
[407801365,1772808673418,-500.0,0.00042466,60]
[407801366,1772808673427,-500.0,0.00042466,60]
[407801367,1772808673437,-500.0,0.00042466,60]
[407801368,1772808673450,-500.0,0.00042466,60]
[407801369,1772808673460,-902.0,0.00042466,60]
[407801370,1772808673470,-635.0,0.00042466,30]
[407801371,1772808673479,-150.0,0.00042468,30]
[407801372,1772808673489,-4805.37460487,0.000425,120]
[407801373,1772808673499,-894.62680469,0.000425,120]
[407801374,1772808673510,-1000.0,0.000425,120]
[407801375,1772808673520,-573.31615994,0.000425,21]
[407801376,1772808673530,-150.0,0.00042501,30]
[407801377,1772808673540,-150.0,0.00042508,30]
[407801378,1772808673555,-151.5,0.0004251,60]
[407801379,1772808673565,-237.39121081,0.00042512,30]
[407801380,1772808673575,-159.49661076,0.00042512,30]
[407801381,1772808673586,-178.56416906,0.00042512,30]
[407801382,1772808673596,-196.401106,0.00042512,30]
[407801383,1772808673606,-259.39398879,0.00042512,30]
[407801384,1772808673615,-496.10721813,0.00042512,30]
[407801385,1772808673625,-150.0,0.00042518,30]
[407801386,1772808673636,-150.0,0.00042529,30]
[407801387,1772808673645,-301.00708898,0.00042533,2]
[407801388,1772808673655,-300.98971168,0.00042533,2]
[407801389,1772808673666,-300.0,0.00042533,2]
[407801390,1772808673676,-651.71896752,0.00042533,2]
[407801391,1772808673686,-300.0,0.00042533,2]
[407801392,1772808673695,-354.37496312,0.00042533,2]
[407801393,1772808673705,-1084.42255485,0.00042533,2]
[407801394,1772808673714,-521.32670381,0.00042533,2]
[407801395,1772808673724,-300.71995915,0.00042533,2]
[407801396,1772808673734,-300.0,0.00042533,2]
[407801397,1772808673743,-300.0,0.00042533,2]
[407801398,1772808673755,-300.0,0.00042533,2]
[407801399,1772808673764,-1048.71972246,0.00042533,2]
[407801400,1772808673774,-306.68079331,0.00042533,2]
[407801401,1772808673783,-856.31686265,0.00042533,2]
[407801402,1772808673793,-1868.53914027,0.00042533,2]
[407801403,1772808673804,-307.943616,0.00042533,2]
[407801404,1772808673814,-300.0,0.00042533,2]
[407801405,1772808673824,-459.47941262,0.00042533,2]
[407801406,1772808673834,-445.41337275,0.00042533,2]
[407801407,1772808673844,-474.05380496,0.00042533,2]
[407801408,1772808673858,-372.20230898,0.00042533,2]
[407801409,1772808673869,-348.61252797,0.00042533,2]
[407801410,1772808673880,-300.36223533,0.00042533,2]
[407801411,1772808673891,-519.71301933,0.00042533,2]
[407801412,1772808673902,-306.8999554,0.00042533,2]
[407801413,1772808673915,-300.0,0.00042533,2]
[407801414,1772808673925,-300.0,0.00042533,2]
[407801415,1772808673934,-300.0,0.00042533,2]
[407801416,1772808673947,-1084.42255485,0.00042533,2]
[407801417,1772808673958,-300.0,0.00042533,2]
[407801418,1772808673969,-300.0,0.00042533,2]
[407801419,1772808673983,-302.13828463,0.00042533,2]
[407801420,1772808673993,-1048.71972246,0.00042533,2]
[407801421,1772808674002,-306.68079331,0.00042533,2]
[407801422,1772808674012,-856.31686265,0.00042533,2]
[407801423,1772808674206,-1868.53914027,0.00042533,2]
[407801424,1772808674225,-307.943616,0.00042533,2]
[407801425,1772808674235,-301.97529056,0.00042533,2]
[407801426,1772808674244,-459.47941262,0.00042533,2]
[407801427,1772808674254,-372.20230898,0.00042533,2]
[407801428,1772808674264,-300.36223533,0.00042533,2]
[407801429,1772808674274,-519.71301933,0.00042533,2]
[407801430,1772808674284,-306.8999554,0.00042533,2]
[407801431,1772808674293,-300.0,0.00042533,2]
[407801432,1772808674308,-300.0,0.00042533,2]
[407801433,1772808674318,-300.0,0.00042533,2]
[407801434,1772808674327,-1084.42255485,0.00042533,2]
[407801435,1772808674337,-300.0,0.00042533,2]
[407801436,1772808674347,-300.0,0.00042533,2]
[407801437,1772808674357,-300.0,0.00042533,2]
[407801438,1772808674366,-1048.71972246,0.00042533,2]
[407801439,1772808674376,-306.68079331,0.00042533,2]
[407801440,1772808674386,-300.0,0.00042533,2]
[407801441,1772808674395,-856.31686265,0.00042533,2]
[407801442,1772808674404,-301.04099642,0.00042533,2]
[407801443,1772808674414,-1868.53914027,0.00042533,2]
[407801444,1772808674425,-301.1779551,0.00042533,2]
[407801445,1772808674435,-301.0233134,0.00042533,2]
[407801446,1772808674444,-301.04636085,0.00042533,2]
[407801447,1772808674454,-307.943616,0.00042533,2]
[407801448,1772808674463,-301.3366208,0.00042533,2]
[407801449,1772808674472,-300.0,0.00042533,2]
[407801450,1772808674481,-300.0,0.00042533,2]
[407801451,1772808674491,-459.47941262,0.00042533,2]
[407801452,1772808674501,-300.0,0.00042533,2]
[407801453,1772808674510,-300.98948013,0.00042533,2]
[407801454,1772808674520,-372.20230898,0.00042533,2]
[407801455,1772808674529,-300.36223533,0.00042533,2]
[407801456,1772808674539,-301.12214223,0.00042533,2]
[407801457,1772808674549,-300.0,0.00042533,2]
[407801458,1772808674570,-519.71301933,0.00042533,2]
[407801459,1772808674579,-306.8999554,0.00042533,2]
[407801460,1772808674590,-300.0,0.00042533,2]
[407801461,1772808674600,-301.46382453,0.00042533,2]
[407801462,1772808674610,-300.0,0.00042533,2]
[407801463,1772808674619,-301.00734927,0.00042533,2]
[407801464,1772808674629,-300.0,0.00042533,2]
[407801465,1772808674640,-605.03217628,0.00042533,2]
[407801466,1772808674650,-1084.42255485,0.00042533,2]
[407801467,1772808674660,-300.0,0.00042533,2]
[407801468,1772808674670,-300.0,0.00042533,2]
[407801469,1772808674680,-300.0,0.00042533,2]
[407801470,1772808674691,-300.93673575,0.00042533,2]
[407801471,1772808674702,-1048.71972246,0.00042533,2]
[407801472,1772808674713,-306.68079331,0.00042533,2]
[407801473,1772808674726,-300.94596422,0.00042533,2]
[407801474,1772808674737,-856.31686265,0.00042533,2]
[407801475,1772808674749,-1868.53914027,0.00042533,2]
[407801476,1772808674760,-307.943616,0.00042533,2]
[407801477,1772808674770,-300.0,0.00042533,2]
[407801478,1772808674780,-301.01024035,0.00042533,2]
[407801479,1772808674791,-459.47941262,0.00042533,2]
[407801480,1772808674803,-300.0,0.00042533,2]
[407801481,1772808674813,-300.0,0.00042533,2]
[407801482,1772808674823,-300.0,0.00042533,2]
[407801483,1772808674833,-372.20230898,0.00042533,2]
[407801484,1772808674845,-300.36223533,0.00042533,2]
[407801485,1772808674856,-301.00940719,0.00042533,2]
[407801486,1772808674868,-519.71301933,0.00042533,2]
[407801487,1772808674879,-306.8999554,0.00042533,2]
[407801488,1772808674892,-300.0,0.00042533,2]
[407801489,1772808674903,-343.96105971,0.00042533,2]
[407801490,1772808674912,-300.0,0.00042533,2]
[407801491,1772808674922,-300.95441166,0.00042533,2]
[407801492,1772808674933,-1084.42255485,0.00042533,2]
[407801493,1772808674943,-300.0,0.00042533,2]
[407801494,1772808674952,-300.0,0.00042533,2]
[407801495,1772808674963,-1048.71972246,0.00042533,2]
[407801496,1772808674973,-306.68079331,0.00042533,2]
[407801497,1772808674983,-856.31686265,0.00042533,2]
[407801498,1772808674992,-1868.53914027,0.00042533,2]
[407801499,1772808675002,-307.943616,0.00042533,2]
[407801500,1772808675012,-459.47941262,0.00042533,2]
[407801501,1772808675022,-372.20230898,0.00042533,2]
[407801502,1772808675031,-300.0,0.00042533,2]
[407801503,1772808675040,-302.32905367,0.00042533,2]
[407801504,1772808675051,-519.71301933,0.00042533,2]
[407801505,1772808675061,-306.8999554,0.00042533,2]
[407801506,1772808675071,-300.0,0.00042533,2]
[407801507,1772808675081,-1084.42255485,0.00042533,2]
[407801508,1772808675091,-300.0,0.00042533,2]
[407801509,1772808675101,-300.0,0.00042533,2]
[407801510,1772808675111,-300.23935378,0.00042533,2]
[407801511,1772808675121,-1048.71972246,0.00042533,2]
[407801512,1772808675131,-306.68079331,0.00042533,2]
[407801513,1772808675140,-856.31686265,0.00042533,2]
[407801514,1772808675149,-1868.53914027,0.00042533,2]
[407801515,1772808675159,-307.943616,0.00042533,2]
[407801516,1772808675169,-459.47941262,0.00042533,2]
[407801517,1772808675178,-372.20230898,0.00042533,2]
[407801518,1772808675188,-519.71301933,0.00042533,2]
[407801519,1772808675198,-306.8999554,0.00042533,2]
[407801520,1772808675207,-300.0,0.00042533,2]
[407801521,1772808675216,-1084.42255485,0.00042533,2]
[407801522,1772808675226,-300.0,0.00042533,2]
[407801523,1772808675235,-300.0,0.00042533,2]
[407801524,1772808675244,-150.0,0.00042544,30]
[407801525,1772808675254,-150.0,0.00042544,30]
[407801526,1772808675264,-206.2,0.00042546,120]
[407801527,1772808675273,-237.39121081,0.0004256,30]
[407801528,1772808675283,-159.49661076,0.0004256,30]
[407801529,1772808675299,-178.56416906,0.0004256,30]
[407801530,1772808675309,-196.401106,0.0004256,30]
[407801531,1772808675319,-259.39398879,0.0004256,30]
[407801532,1772808675329,-496.10721813,0.0004256,30]
[407801533,1772808675339,-150.0,0.00042569,30]
[407801534,1772808675349,-299.0,0.0004257,120]
[407801535,1772808675359,-299.0,0.0004257,120]
[407801536,1772808675369,-500.0,0.00042575,120]
[407801537,1772808675379,-500.0,0.00042575,120]
[407801538,1772808675389,-1000.0,0.00042582,30]
[407801539,1772808675399,-150.0,0.00042585,30]
[407801540,1772808675410,-150.0,0.00042598,30]
[407801541,1772808675420,-151.0,0.000426,120]
[407801542,1772808675430,-213.04,0.000426,120]
[407801543,1772808675440,-151.5,0.00042602,60]
[407801544,1772808675450,-151.5,0.00042603,60]
[407801545,1772808675460,-237.39121081,0.00042607,30]
[407801546,1772808675470,-159.49661076,0.00042607,30]
[407801547,1772808675480,-178.56416906,0.00042607,30]
[407801548,1772808675490,-196.401106,0.00042607,30]
[407801549,1772808675500,-259.39398879,0.00042607,30]
[407801550,1772808675510,-496.10721813,0.00042607,30]
[407801551,1772808675520,-152.0,0.00042612,12]
[407801552,1772808675532,-150.0,0.0004262,30]
[407801553,1772808675542,-160.0,0.00042636,16]
[407801554,1772808675553,-150.0,0.00042641,30]
[407801555,1772808675563,-173.75,0.00042651,60]
[407801556,1772808675573,-162.395,0.00042651,60]
[407801557,1772808675582,-237.39121081,0.00042655,30]
[407801558,1772808675592,-159.49661076,0.00042655,30]
[407801559,1772808675602,-178.56416906,0.00042655,30]
[407801560,1772808675612,-196.401106,0.00042655,30]
[407801561,1772808675622,-259.39398879,0.00042655,30]
[407801562,1772808675632,-496.10721813,0.00042655,30]
[407801563,1772808675641,-939.97,0.00042661,120]
[407801564,1772808675651,-150.0,0.00042669,30]
[407801565,1772808675661,-150.0,0.0004267,30]
[407801566,1772808675670,-150.0,0.00042672,30]
[407801567,1772808675681,-150.0,0.00042672,30]
[407801568,1772808675691,-150.0,0.00042689,30]
[407801569,1772808675700,-491.11613673,0.000427,120]
[407801570,1772808675710,-153.0,0.000427,120]
[407801571,1772808675719,-237.39121081,0.00042703,30]
[407801572,1772808675729,-159.49661076,0.00042703,30]
[407801573,1772808675739,-178.56416906,0.00042703,30]
[407801574,1772808675749,-196.401106,0.00042703,30]
[407801575,1772808675758,-259.39398879,0.00042703,30]
[407801576,1772808675767,-496.10721813,0.00042703,30]
[407801577,1772808675777,-150.0,0.00042712,30]
[407801578,1772808675787,-500.0,0.00042712,120]
[407801579,1772808675797,-500.0,0.00042712,120]
[407801580,1772808675809,-79486.90727579,0.0004272,2]
[407801581,1772808675818,-150.0,0.00042721,30]
[407801582,1772808675828,-500.0,0.00042739,120]
[407801583,1772808675838,-500.0,0.00042739,120]